[Event "*** Titled Tuesday Blitz"]
[Site "Chess.com"]
[Date "2018.10.02"]
[Round "10"]
[White "xamax2000"]
[Black "severomorskij"]
[Result "1/2-1/2"]
[WhiteElo "2473"]
[BlackElo "2691"]
[TimeControl "180+2"]
[EndTime "15:15:02 PDT"]
[Termination "Game drawn by repetition"]

1. e4 {[%clk 0:03:01.9]} 1... c5 {[%clk 0:03:00.1]} 2. Nf3 {[%clk 0:03:00.6]}
2... Nc6 {[%clk 0:03:00.9]} 3. d4 {[%clk 0:02:59.2]} 3... cxd4 {[%clk
0:03:01.8]} 4. Nxd4 {[%clk 0:03:01.1]} 4... Nf6 {[%clk 0:03:01.9]} 5. Nc3 {[%clk
0:03:02.5]} 5... e5 {[%clk 0:03:03.1]} 6. Ndb5 {[%clk 0:03:03.7]} 6... d6 {[%clk
0:03:04.4]} 7. Bg5 {[%clk 0:03:04.5]} 7... a6 {[%clk 0:03:05.5]} 8. Na3 {[%clk
0:03:05.8]} 8... b5 {[%clk 0:03:07]} 9. Nd5 {[%clk 0:03:01]} 9... Be7 {[%clk
0:03:07.2]} 10. Bxf6 {[%clk 0:03:02.2]} 10... Bxf6 {[%clk 0:03:08.6]} 11. c3
{[%clk 0:03:03.9]} 11... O-O {[%clk 0:03:07.7]} 12. Nc2 {[%clk 0:03:04.5]} 12...
Bg5 {[%clk 0:03:08.6]} 13. a4 {[%clk 0:03:05.6]} 13... bxa4 {[%clk 0:03:07.1]}
14. Rxa4 {[%clk 0:03:07.5]} 14... a5 {[%clk 0:03:08.4]} 15. Bc4 {[%clk
0:03:08.6]} 15... Rb8 {[%clk 0:03:08.7]} 16. b3 {[%clk 0:03:08.5]} 16... Kh8
{[%clk 0:03:08.4]} 17. Nce3 {[%clk 0:03:02.8]} 17... g6 {[%clk 0:03:04.1]} 18.
h4 {[%clk 0:03:03.1]} 18... Bxh4 {[%clk 0:03:04]} 19. g3 {[%clk 0:03:04.2]}
19... Bg5 {[%clk 0:03:05.1]} 20. f4 {[%clk 0:03:05.2]} 20... exf4 {[%clk
0:03:06.1]} 21. gxf4 {[%clk 0:03:07.1]} 21... Bh4+ {[%clk 0:03:07.1]} 22. Kf1
{[%clk 0:03:07.8]} 22... f5 {[%clk 0:02:57.3]} 23. Ra2 {[%clk 0:03:00]} 23...
fxe4 {[%clk 0:02:56.6]} 24. Rah2 {[%clk 0:02:57.8]} 24... g5 {[%clk 0:02:57.5]}
25. Qh5 {[%clk 0:02:50.4]} 25... Ne5 {[%clk 0:02:44.9]} 26. Ke2 {[%clk
0:01:59.5]} 26... Nxc4 {[%clk 0:02:33.2]} 27. fxg5 {[%clk 0:01:51.6]} 27... Rxb3
{[%clk 0:01:11.4]} 28. Nxc4 {[%clk 0:01:43]} 28... Ba6 {[%clk 0:01:01.2]} 29.
Rxh4 {[%clk 0:01:18]} 29... Bxc4+ {[%clk 0:01:00.6]} 30. Kd2 {[%clk 0:01:19.9]}
30... e3+ {[%clk 0:00:29]} 31. Kc2 {[%clk 0:01:08.8]} 31... Rf2+ {[%clk
0:00:27]} 32. Kc1 {[%clk 0:01:06.8]} 32... Bd3 {[%clk 0:00:27.1]} 33. Qxh7+
{[%clk 0:00:56.6]} 33... Bxh7 {[%clk 0:00:27.4]} 34. Rxh7+ {[%clk 0:00:58.2]}
34... Kg8 {[%clk 0:00:28.3]} 35. Rh8+ {[%clk 0:00:40]} 35... Kf7 {[%clk
0:00:18]} 36. Rxd8 {[%clk 0:00:41]} 36... e2 {[%clk 0:00:18.3]} 37. Re1 {[%clk
0:00:37.6]} 37... Rf1 {[%clk 0:00:16.4]} 38. Rd7+ {[%clk 0:00:15.4]} 38... Ke6
{[%clk 0:00:11.4]} 39. Re7+ {[%clk 0:00:16]} 39... Kxd5 {[%clk 0:00:12.5]} 40.
Rxe2 {[%clk 0:00:15.1]} 40... Rxe1+ {[%clk 0:00:12.6]} 41. Rxe1 {[%clk 0:00:17]}
41... Rxc3+ {[%clk 0:00:13.9]} 42. Kb2 {[%clk 0:00:18.8]} 42... Rg3 {[%clk
0:00:13.2]} 43. Ra1 {[%clk 0:00:20.2]} 43... Kc4 {[%clk 0:00:09.6]} 44. Rxa5
{[%clk 0:00:21.6]} 44... Rg2+ {[%clk 0:00:09]} 45. Kc1 {[%clk 0:00:23]} 45... d5
{[%clk 0:00:09.7]} 46. Kd1 {[%clk 0:00:23.9]} 46... Rxg5 {[%clk 0:00:06.5]} 47.
Ra4+ {[%clk 0:00:24.2]} 47... Kd3 {[%clk 0:00:06.4]} 48. Ra3+ {[%clk 0:00:25.2]}
48... Ke4 {[%clk 0:00:07.6]} 49. Ra4+ {[%clk 0:00:25.9]} 49... d4 {[%clk
0:00:08]} 50. Ra3 {[%clk 0:00:27.4]} 50... Rg1+ {[%clk 0:00:08.6]} 51. Ke2
{[%clk 0:00:28.2]} 51... Rg2+ {[%clk 0:00:09.8]} 52. Kd1 {[%clk 0:00:29.1]}
52... Rh2 {[%clk 0:00:10.8]} 53. Rb3 {[%clk 0:00:29.3]} 53... Kd5 {[%clk
0:00:11.2]} 54. Rb8 {[%clk 0:00:28.9]} 54... Kc4 {[%clk 0:00:11.6]} 55. Ra8
{[%clk 0:00:25]} 55... Kb4 {[%clk 0:00:05.6]} 56. Rc8 {[%clk 0:00:22.5]} 56...
Kb3 {[%clk 0:00:06.5]} 57. Rc7 {[%clk 0:00:22.2]} 57... Kb4 {[%clk 0:00:07.1]}
58. Rc8 {[%clk 0:00:22.5]} 58... Rf2 {[%clk 0:00:07.8]} 59. Rc7 {[%clk 0:00:23]}
59... Ra2 {[%clk 0:00:07.8]} 60. Rc8 {[%clk 0:00:23.3]} 60... Rh2 {[%clk
0:00:07.6]} 61. Rc7 {[%clk 0:00:23.8]} 61... Rh5 {[%clk 0:00:07.3]} 62. Kd2
{[%clk 0:00:22.5]} 62... Rc5 {[%clk 0:00:07.9]} 63. Rxc5 {[%clk 0:00:19.9]}
63... Kxc5 {[%clk 0:00:09]} 64. Kd3 {[%clk 0:00:21.1]} 64... Kd5 {[%clk
0:00:10.1]} 65. Kd2 {[%clk 0:00:22.9]} 65... Ke4 {[%clk 0:00:12]} 66. Ke2 {[%clk
0:00:24.2]} 66... d3+ {[%clk 0:00:13.3]} 67. Kd2 {[%clk 0:00:25.7]} 67... Kd4
{[%clk 0:00:14.5]} 68. Kd1 {[%clk 0:00:27.1]} 68... Kc4 {[%clk 0:00:15.9]} 69.
Kd2 {[%clk 0:00:28]} 69... Kd4 {[%clk 0:00:17.4]} 70. Kd1 {[%clk 0:00:29.5]}
70... Ke3 {[%clk 0:00:18.6]} 71. Ke1 {[%clk 0:00:30.7]} 71... Ke4 {[%clk
0:00:19.9]} 72. Kd2 {[%clk 0:00:31.7]} 72... Kd4 {[%clk 0:00:21.2]} 73. Kd1
{[%clk 0:00:33.1]} 73... Kc3 {[%clk 0:00:22.3]} 74. Kc1 {[%clk 0:00:34.2]} 74...
Kc4 {[%clk 0:00:23.7]} 75. Kd2 {[%clk 0:00:35.1]} 75... Kd4 {[%clk 0:00:25.2]}
76. Kd1 {[%clk 0:00:36.1]} 76... Ke3 {[%clk 0:00:26.5]} 77. Ke1 {[%clk
0:00:37.2]} 77... Ke4 {[%clk 0:00:27.5]} 78. Kd2 {[%clk 0:00:38.1]} 78... Kd4
{[%clk 0:00:28.8]} 1/2-1/2

[Event "*** Titled Tuesday Blitz"]
[Site "Chess.com"]
[Date "2018.10.02"]
[Round "10"]
[White "Synctel"]
[Black "FearlessKing64"]
[Result "0-1"]
[WhiteElo "1999"]
[BlackElo "2202"]
[TimeControl "180+2"]
[EndTime "15:15:43 PDT"]
[Termination "FearlessKing64 won on time"]

1. d4 {[%clk 0:03:01.9]} 1... Nf6 {[%clk 0:02:59.7]} 2. Nf3 {[%clk 0:02:56.9]}
2... g6 {[%clk 0:03:00.3]} 3. c3 {[%clk 0:02:55.3]} 3... Bg7 {[%clk 0:03:00.5]}
4. Bf4 {[%clk 0:02:56.8]} 4... O-O {[%clk 0:03:00.3]} 5. e3 {[%clk 0:02:57.7]}
5... d6 {[%clk 0:03:01.6]} 6. h3 {[%clk 0:02:58]} 6... b6 {[%clk 0:02:56.1]} 7.
Nbd2 {[%clk 0:02:48.4]} 7... Bb7 {[%clk 0:02:55.4]} 8. Bd3 {[%clk 0:02:49.1]}
8... c5 {[%clk 0:02:54.3]} 9. O-O {[%clk 0:02:49.2]} 9... cxd4 {[%clk
0:02:54.2]} 10. exd4 {[%clk 0:02:49]} 10... Nbd7 {[%clk 0:02:52.1]} 11. Bh2
{[%clk 0:02:49.3]} 11... a6 {[%clk 0:02:23.3]} 12. Re1 {[%clk 0:02:43.6]} 12...
b5 {[%clk 0:02:24.2]} 13. Qe2 {[%clk 0:02:36.9]} 13... Re8 {[%clk 0:02:20]} 14.
Ng5 {[%clk 0:02:28.9]} 14... Qb6 {[%clk 0:02:04.5]} 15. Ndf3 {[%clk 0:01:45.2]}
15... e6 {[%clk 0:01:50]} 16. Rad1 {[%clk 0:01:12.3]} 16... h6 {[%clk 0:01:20]}
17. Ne4 {[%clk 0:00:38.2]} 17... Nxe4 {[%clk 0:01:13.1]} 18. Bxe4 {[%clk
0:00:40.1]} 18... Bxe4 {[%clk 0:01:10.4]} 19. Qxe4 {[%clk 0:00:42]} 19... b4
{[%clk 0:01:01]} 20. h4 {[%clk 0:00:42.2]} 20... bxc3 {[%clk 0:00:56.1]} 21.
bxc3 {[%clk 0:00:44.1]} 21... Rac8 {[%clk 0:00:56]} 22. Rd3 {[%clk 0:00:41.1]}
22... Nf6 {[%clk 0:00:47.3]} 23. Qf4 {[%clk 0:00:40.8]} 23... Nd5 {[%clk
0:00:47.4]} 24. Qxd6 {[%clk 0:00:39.8]} 24... Qxd6 {[%clk 0:00:46.6]} 25. Bxd6
{[%clk 0:00:41.7]} 25... Rxc3 {[%clk 0:00:41.9]} 26. Rxc3 {[%clk 0:00:30]} 26...
Nxc3 {[%clk 0:00:43.8]} 27. Re3 {[%clk 0:00:18.7]} 27... Rc8 {[%clk 0:00:39.5]}
28. Bc5 {[%clk 0:00:14.8]} 28... Nd5 {[%clk 0:00:15.6]} 29. Rb3 {[%clk
0:00:15.6]} 29... e5 {[%clk 0:00:13.2]} 30. g3 {[%clk 0:00:13.4]} 30... exd4
{[%clk 0:00:06.5]} 31. Bxd4 {[%clk 0:00:15.3]} 31... Rc1+ {[%clk 0:00:04.9]} 32.
Kg2 {[%clk 0:00:16.2]} 32... Rc2 {[%clk 0:00:06.3]} 33. Ra3 {[%clk 0:00:16.4]}
33... Nc7 {[%clk 0:00:04.9]} 34. Bxg7 {[%clk 0:00:16.5]} 34... Kxg7 {[%clk
0:00:06.8]} 35. Nd4 {[%clk 0:00:16.8]} 35... Rc4 {[%clk 0:00:06.9]} 36. Ne2
{[%clk 0:00:16.1]} 36... Rc6 {[%clk 0:00:07.8]} 37. Nf4 {[%clk 0:00:17.1]} 37...
Ne6 {[%clk 0:00:07.5]} 38. Nd5 {[%clk 0:00:17.4]} 38... Rc5 {[%clk 0:00:07.1]}
39. Nb4 {[%clk 0:00:18]} 39... a5 {[%clk 0:00:08]} 40. Nd3 {[%clk 0:00:18]}
40... Rb5 {[%clk 0:00:08.3]} 41. Ra4 {[%clk 0:00:16]} 41... Nc5 {[%clk
0:00:09.1]} 42. Nxc5 {[%clk 0:00:13.8]} 42... Rxc5 {[%clk 0:00:11]} 43. Kf3
{[%clk 0:00:14.7]} 43... Kf6 {[%clk 0:00:11.8]} 44. Rf4+ {[%clk 0:00:14.8]}
44... Ke6 {[%clk 0:00:12.6]} 45. Re4+ {[%clk 0:00:15.8]} 45... Kd6 {[%clk
0:00:13.4]} 46. a4 {[%clk 0:00:16.8]} 46... f5 {[%clk 0:00:13.8]} 47. Rd4+
{[%clk 0:00:16.4]} 47... Ke5 {[%clk 0:00:13]} 48. Ke3 {[%clk 0:00:15]} 48...
Rc3+ {[%clk 0:00:13.3]} 49. Rd3 {[%clk 0:00:16]} 49... Rc4 {[%clk 0:00:12.4]}
50. f4+ {[%clk 0:00:16.9]} 50... Ke6 {[%clk 0:00:12.8]} 51. Ra3 {[%clk
0:00:17.6]} 51... Rb4 {[%clk 0:00:13.8]} 52. Kf3 {[%clk 0:00:17.8]} 52... Kf6
{[%clk 0:00:14.6]} 53. Ke3 {[%clk 0:00:17.6]} 53... g5 {[%clk 0:00:16]} 54.
hxg5+ {[%clk 0:00:18.2]} 54... hxg5 {[%clk 0:00:17.7]} 55. fxg5+ {[%clk
0:00:19.7]} 55... Kxg5 {[%clk 0:00:19.5]} 56. Kf3 {[%clk 0:00:20.5]} 56... Kh5
{[%clk 0:00:18.9]} 57. Ra1 {[%clk 0:00:17.4]} 57... Rb3+ {[%clk 0:00:14.6]} 58.
Kf4 {[%clk 0:00:18.7]} 58... Kg6 {[%clk 0:00:16.2]} 59. Ra2 {[%clk 0:00:15.1]}
59... Rb4+ {[%clk 0:00:16.9]} 60. Kf3 {[%clk 0:00:16.5]} 60... Kg5 {[%clk
0:00:18.4]} 61. Ra3 {[%clk 0:00:16.8]} 61... Rc4 {[%clk 0:00:19.3]} 62. Ra2
{[%clk 0:00:13]} 62... Rc3+ {[%clk 0:00:20]} 63. Kf2 {[%clk 0:00:14.1]} 63...
Kg4 {[%clk 0:00:21.4]} 64. Rd2 {[%clk 0:00:14.1]} 64... Rxg3 {[%clk 0:00:19.6]}
65. Rd5 {[%clk 0:00:13.2]} 65... Ra3 {[%clk 0:00:16.7]} 66. Rxa5 {[%clk
0:00:14.1]} 66... Ra2+ {[%clk 0:00:17.8]} 67. Ke3 {[%clk 0:00:10.1]} 67... f4+
{[%clk 0:00:18.5]} 68. Ke4 {[%clk 0:00:06.3]} 68... f3 {[%clk 0:00:18.9]} 69.
Ra8 {[%clk 0:00:03.9]} 69... Re2+ {[%clk 0:00:20.1]} 70. Kd3 {[%clk 0:00:03.9]}
70... Ra2 {[%clk 0:00:17]} 71. Rg8+ {[%clk 0:00:04.6]} 71... Kf4 {[%clk
0:00:18.5]} 72. Rf8+ {[%clk 0:00:05]} 72... Kg3 {[%clk 0:00:20]} 73. Rg8+ {[%clk
0:00:05.1]} 73... Kf2 {[%clk 0:00:19.9]} 74. Rf8 {[%clk 0:00:05.2]} 74... Rxa4
{[%clk 0:00:20]} 75. Rf7 {[%clk 0:00:04.9]} 75... Ra3+ {[%clk 0:00:21]} 76. Kd2
{[%clk 0:00:06]} 76... Ra2+ {[%clk 0:00:21.4]} 77. Kd3 {[%clk 0:00:07.3]} 77...
Ra1 {[%clk 0:00:22.9]} 78. Kd2 {[%clk 0:00:06.9]} 78... Ra3 {[%clk 0:00:21.2]}
79. Rg7 {[%clk 0:00:03.4]} 79... Kf1 {[%clk 0:00:21.7]} 0-1

[Event "*** Titled Tuesday Blitz"]
[Site "Chess.com"]
[Date "2018.10.02"]
[Round "10"]
[White "nochewycandy"]
[Black "DishonorOnYourCow"]
[Result "1/2-1/2"]
[WhiteElo "2208"]
[BlackElo "2266"]
[TimeControl "180+2"]
[EndTime "15:15:53 PDT"]
[Termination "Game drawn - insufficient material"]

1. e4 {[%clk 0:03:01.9]} 1... c6 {[%clk 0:02:57]} 2. Nc3 {[%clk 0:02:55]} 2...
d5 {[%clk 0:02:52.2]} 3. Nf3 {[%clk 0:02:55.9]} 3... dxe4 {[%clk 0:02:37.9]} 4.
Nxe4 {[%clk 0:02:56.9]} 4... Nd7 {[%clk 0:02:34.3]} 5. Bc4 {[%clk 0:02:52.1]}
5... e6 {[%clk 0:02:31.6]} 6. O-O {[%clk 0:02:43.2]} 6... Ngf6 {[%clk
0:02:31.1]} 7. Nxf6+ {[%clk 0:02:41.1]} 7... Nxf6 {[%clk 0:02:30.9]} 8. d4
{[%clk 0:02:41.1]} 8... Bd6 {[%clk 0:02:30.2]} 9. Bg5 {[%clk 0:02:39.3]} 9... h6
{[%clk 0:02:29.8]} 10. Bh4 {[%clk 0:02:40.1]} 10... O-O {[%clk 0:02:14.4]} 11.
Qe2 {[%clk 0:02:37.9]} 11... Be7 {[%clk 0:02:02.8]} 12. Rad1 {[%clk 0:02:34.9]}
12... Nd5 {[%clk 0:02:00.3]} 13. Bg3 {[%clk 0:02:31.5]} 13... b5 {[%clk
0:01:56.9]} 14. Bb3 {[%clk 0:02:29.5]} 14... a5 {[%clk 0:01:53.7]} 15. c4 {[%clk
0:02:25.1]} 15... a4 {[%clk 0:01:49.4]} 16. Bc2 {[%clk 0:02:25.1]} 16... bxc4
{[%clk 0:01:49.4]} 17. Ne5 {[%clk 0:02:24.9]} 17... Bb7 {[%clk 0:01:42.7]} 18.
Nxc4 {[%clk 0:02:15.3]} 18... Ba6 {[%clk 0:01:41.6]} 19. a3 {[%clk 0:01:22.4]}
19... c5 {[%clk 0:00:56.5]} 20. dxc5 {[%clk 0:01:14.3]} 20... Bxc5 {[%clk
0:00:56]} 21. Qe4 {[%clk 0:01:03.4]} 21... g6 {[%clk 0:00:47.4]} 22. Ne5 {[%clk
0:00:52.8]} 22... Qe7 {[%clk 0:00:31.3]} 23. Rfe1 {[%clk 0:00:48.1]} 23... Bb7
{[%clk 0:00:30]} 24. Qe2 {[%clk 0:00:38.7]} 24... Qg5 {[%clk 0:00:24.1]} 25. Nd3
{[%clk 0:00:21.5]} 25... h5 {[%clk 0:00:21.6]} 26. Nxc5 {[%clk 0:00:17.1]} 26...
Nf4 {[%clk 0:00:21.9]} 27. Qe3 {[%clk 0:00:13.4]} 27... Bxg2 {[%clk 0:00:08.6]}
28. Qxf4 {[%clk 0:00:12.2]} 28... Qxc5 {[%clk 0:00:07.4]} 29. Kxg2 {[%clk
0:00:12.3]} 29... Qxc2 {[%clk 0:00:08.1]} 30. Qf6 {[%clk 0:00:12.4]} 30... Qc6+
{[%clk 0:00:08.2]} 31. f3 {[%clk 0:00:12.4]} 31... Qc2+ {[%clk 0:00:08.1]} 32.
Kg1 {[%clk 0:00:13.1]} 32... Qf5 {[%clk 0:00:08.2]} 33. Qxf5 {[%clk 0:00:10.2]}
33... gxf5 {[%clk 0:00:10.1]} 34. Rd4 {[%clk 0:00:10.4]} 34... Rfc8 {[%clk
0:00:10.7]} 35. Re2 {[%clk 0:00:09.9]} 35... Kh7 {[%clk 0:00:10.6]} 36. Be5
{[%clk 0:00:11]} 36... Rg8+ {[%clk 0:00:10.5]} 37. Rg2 {[%clk 0:00:11]} 37...
Rxg2+ {[%clk 0:00:08.5]} 38. Kxg2 {[%clk 0:00:12.9]} 38... Ra5 {[%clk
0:00:07.8]} 39. f4 {[%clk 0:00:13.8]} 39... Rb5 {[%clk 0:00:08.3]} 40. Rd7
{[%clk 0:00:14.3]} 40... Kg6 {[%clk 0:00:08.2]} 41. Rd8 {[%clk 0:00:15.2]} 41...
Ra5 {[%clk 0:00:08.6]} 42. Rg8+ {[%clk 0:00:15.1]} 42... Kh6 {[%clk 0:00:09.3]}
43. Kh3 {[%clk 0:00:13.9]} 43... Ra7 {[%clk 0:00:08.5]} 44. Kh4 {[%clk
0:00:14.3]} 44... Rb7 {[%clk 0:00:07.7]} 45. Rh8+ {[%clk 0:00:15.2]} 45... Kg6
{[%clk 0:00:07.2]} 46. Rxh5 {[%clk 0:00:16.4]} 46... f6 {[%clk 0:00:08.4]} 47.
Bc3 {[%clk 0:00:16.3]} 47... Rb8 {[%clk 0:00:09]} 48. Bxf6 {[%clk 0:00:09.2]}
48... Kxf6 {[%clk 0:00:09.2]} 49. Rh6+ {[%clk 0:00:10.8]} 49... Ke7 {[%clk
0:00:10.7]} 50. Rh7+ {[%clk 0:00:10.5]} 50... Kd6 {[%clk 0:00:12.1]} 51. Ra7
{[%clk 0:00:11.4]} 51... Rxb2 {[%clk 0:00:13.5]} 52. Rxa4 {[%clk 0:00:09]} 52...
Rxh2+ {[%clk 0:00:14.2]} 53. Kg3 {[%clk 0:00:09.9]} 53... Ra2 {[%clk 0:00:15.2]}
54. Ra6+ {[%clk 0:00:10.8]} 54... Ke7 {[%clk 0:00:16]} 55. Kf3 {[%clk
0:00:12.2]} 55... Kf6 {[%clk 0:00:17.2]} 56. Ke3 {[%clk 0:00:13.6]} 56... Ke7
{[%clk 0:00:16.6]} 57. a4 {[%clk 0:00:14.9]} 57... Ra3+ {[%clk 0:00:17.1]} 58.
Kd4 {[%clk 0:00:16.5]} 58... Rf3 {[%clk 0:00:17.2]} 59. Ra7+ {[%clk 0:00:13.9]}
59... Kf6 {[%clk 0:00:17.5]} 60. a5 {[%clk 0:00:15.4]} 60... Rxf4+ {[%clk
0:00:17.9]} 61. Ke3 {[%clk 0:00:17.1]} 61... Ra4 {[%clk 0:00:19.2]} 62. a6
{[%clk 0:00:18.2]} 62... e5 {[%clk 0:00:18.1]} 63. Ra8 {[%clk 0:00:19.2]} 63...
f4+ {[%clk 0:00:16.5]} 64. Kf3 {[%clk 0:00:20.3]} 64... Kg7 {[%clk 0:00:17.4]}
65. Kg4 {[%clk 0:00:18.4]} 65... f3+ {[%clk 0:00:08.6]} 66. Kxf3 {[%clk
0:00:18.8]} 66... Kh7 {[%clk 0:00:09.4]} 67. Ke3 {[%clk 0:00:19.7]} 67... Kg7
{[%clk 0:00:10.4]} 68. Kd3 {[%clk 0:00:19.2]} 68... Kh7 {[%clk 0:00:10.9]} 69.
Kc3 {[%clk 0:00:20.2]} 69... Ra1 {[%clk 0:00:09.8]} 70. Kb2 {[%clk 0:00:20.7]}
70... Ra4 {[%clk 0:00:09.6]} 71. Kb3 {[%clk 0:00:22]} 71... Ra1 {[%clk
0:00:10.3]} 72. Kb4 {[%clk 0:00:23.6]} 72... Kg7 {[%clk 0:00:10]} 73. Kb5 {[%clk
0:00:24.9]} 73... e4 {[%clk 0:00:10.5]} 74. Re8 {[%clk 0:00:25]} 74... Rb1+
{[%clk 0:00:10.4]} 75. Kc6 {[%clk 0:00:25.9]} 75... Rc1+ {[%clk 0:00:09.6]} 76.
Kb7 {[%clk 0:00:25.8]} 76... Rb1+ {[%clk 0:00:10.4]} 77. Ka7 {[%clk 0:00:25.8]}
77... Rb4 {[%clk 0:00:10.8]} 78. Re7+ {[%clk 0:00:26.9]} 78... Kf6 {[%clk
0:00:11.1]} 79. Rb7 {[%clk 0:00:23.9]} 79... Ra4 {[%clk 0:00:11.1]} 80. Rb6+
{[%clk 0:00:23.9]} 80... Ke5 {[%clk 0:00:11.1]} 81. Kb7 {[%clk 0:00:22.4]} 81...
e3 {[%clk 0:00:11.1]} 82. a7 {[%clk 0:00:20.8]} 82... Rxa7+ {[%clk 0:00:10.9]}
83. Kxa7 {[%clk 0:00:22]} 83... e2 {[%clk 0:00:09.5]} 84. Rb8 {[%clk 0:00:22]}
84... Kd4 {[%clk 0:00:09.3]} 85. Re8 {[%clk 0:00:22.3]} 85... Kd3 {[%clk
0:00:10.2]} 86. Kb6 {[%clk 0:00:23.8]} 86... Kd2 {[%clk 0:00:11.4]} 87. Kc5
{[%clk 0:00:25.2]} 87... e1=Q {[%clk 0:00:12.3]} 88. Rxe1 {[%clk 0:00:26.3]}
88... Kxe1 {[%clk 0:00:13.7]} 1/2-1/2